bitfinex/quotes_ETHUSD_20251218
["timestamp","ask_amount","ask_price","bid_price","bid_amount"]
[1766082727834,0.564,2849.9,2849.3,5.1086]
[1766082729705,1.9818,2851.1,2849.5,2.0141]
[1766082730019,0.564,2851.2,2850.2,2.0141]
[1766082730228,0.564,2851.2,2850.4,5.1086]
[1766082730420,2.5458,2851.2,2850.4,5.1086]
[1766082730619,0.30101802,2851.1,2850.4,5.1086]
[1766082731151,2.28281802,2851.1,2850.2,0.563]
[1766082731308,0.564,2851.2,2850.2,0.563]
[1766082731728,0.001,2851.2,2850.5,7.01631292]
[1766082732056,0.001,2851.2,2850.7,5.1086]
[1766082732359,0.563,2851.5,2851.1,5.1086]
[1766082732505,0.001,2851.8,2851.1,5.1086]
[1766082732702,0.76228,2851.8,2851.1,5.1086]
[1766082733435,2.91988,2851.8,2851.1,5.1086]
[1766082733915,2.1576,2851.7,2850.8,8.14908032]
[1766082734122,2.1576,2851.7,2850.9,3.50763066]
[1766082734414,2.1576,2851.7,2850.8,4.6413]
[1766082734733,2.1576,2851.3,2850.5,4.6413]
[1766082734937,0.001,2851.5,2850.9,3.50755729]
[1766082735638,0.001,2851.5,2851.1,7.01481349]
[1766082735839,0.001,2851.5,2850.9,8.14896424]
[1766082736212,0.001,2851.5,2850.9,11.65662848]
[1766082736439,0.001,2851.5,2851.0,4.6413]
[1766082736926,0.001,2851.5,2850.8,0.46438023]
[1766082737112,0.07457578,2851.5,2850.8,0.46438023]
[1766082737512,0.07457578,2851.5,2850.6,6.14022029]
[1766082737513,0.07457578,2851.5,2850.6,0.563]
[1766082737836,2.23217578,2851.5,2850.8,0.46438023]
[1766082738041,0.22321758,2851.4,2850.8,0.46438023]
[1766082738255,0.07357578,2851.3,2850.7,4.6413]
[1766082738546,0.07357578,2851.3,2850.7,5.57703522]
[1766082738752,0.07357578,2851.3,2850.7,6.7105]
[1766082739152,0.07357578,2851.3,2850.7,10.21836563]
[1766082739681,0.07357578,2851.3,2850.7,6.7105]
[1766082740549,0.07357578,2851.3,2850.3,0.46438023]
[1766082740754,2.23117578,2851.3,2850.5,0.46438023]
[1766082740945,0.27941758,2851.2,2850.5,8.14942312]
[1766082741660,0.27941758,2851.2,2850.6,4.6413]
[1766082741871,0.07357578,2850.6,2849.8,5.046804]
[1766082742047,0.563,2850.5,2850.0,2.0692]
[1766082742351,0.563,2850.8,2850.3,4.6413]
[1766082742651,1.02738023,2850.8,2850.1,8.14991867]
[1766082742825,1.02738023,2850.8,2850.1,4.6413]
[1766082742826,1.41945403,2850.8,2850.1,4.6413]
[1766082743016,2.1576,2850.5,2849.6,2.0692]
[1766082743216,2.1576,2850.3,2849.4,8.15081077]
[1766082743648,2.1576,2850.3,2849.5,4.6413]
[1766082743846,0.63657578,2850.4,2849.7,4.6413]
[1766082744046,0.07357578,2850.6,2850.0,2.0692]
[1766082744223,0.07357578,2850.6,2850.1,4.6413]
[1766082744622,0.07357578,2850.8,2850.2,4.6413]
[1766082745950,0.07457578,2851.3,2850.3,4.6413]
[1766082746152,0.001,2851.3,2850.9,4.6413]
[1766082746460,0.07357578,2851.7,2851.3,4.6413]
[1766082746461,0.63657578,2851.7,2851.3,4.6413]
[1766082746753,2.79417578,2851.7,2850.9,0.46413]
[1766082747051,0.07357578,2851.5,2850.7,2.6322]
[1766082747353,2.23117578,2851.5,2850.6,0.563]
[1766082748128,2.23117578,2851.5,2850.1,8.74695126]
[1766082748129,2.1576,2850.9,2849.8,2.53358023]
[1766082748452,2.1576,2850.9,2849.9,0.46438023]
[1766082748453,2.1576,2850.8,2849.9,0.46438023]
[1766082748761,2.1576,2850.8,2850.1,8.61428045]
[1766082748933,2.1576,2850.8,2850.2,3.50848705]
[1766082749252,0.63657578,2850.9,2850.2,4.6413]
[1766082749455,0.07357578,2850.9,2850.2,10.21896372]
[1766082749659,0.07357578,2850.9,2850.2,6.7105]
[1766082749972,0.07357578,2850.9,2850.2,10.21896239]
[1766082750139,0.07357578,2850.9,2850.2,6.7105]
[1766082750455,0.07357578,2850.9,2850.2,4.6413]
[1766082751227,0.07357578,2850.9,2850.5,0.002]
[1766082751424,0.36035094,2850.9,2850.5,0.002]
[1766082751866,4.68227578,2850.9,2849.9,3.9731892]
[1766082752026,4.68227578,2850.9,2849.8,4.6413]
[1766082752027,0.07357578,2850.5,2849.8,4.6413]
[1766082752227,2.23117578,2850.5,2849.8,8.15030333]
[1766082752427,2.23117578,2850.5,2849.8,4.6413]
[1766082752676,2.1576,2850.2,2849.4,6.7125]
[1766082753172,2.1576,2850.2,2849.4,10.22198142]
[1766082753474,2.1576,2850.2,2849.4,10.22194958]
[1766082753640,2.1576,2850.2,2849.4,10.22197806]
[1766082753835,2.1576,2850.2,2849.5,3.50937791]
[1766082754076,0.07357578,2850.3,2849.5,4.88252061]
[1766082754281,0.07357578,2850.3,2849.9,4.6413]
[1766082754466,0.07357578,2850.5,2849.9,4.6413]
[1766082756478,0.563,2850.8,2849.8,3.50895126]
[1766082756688,0.07357578,2850.5,2849.9,4.6413]
[1766082756842,0.07357578,2850.3,2849.6,0.563]
[1766082757042,0.07357578,2850.3,2849.5,10.21981934]
[1766082757274,0.07357578,2850.3,2849.5,11.63939497]
[1766082757460,0.07357578,2850.3,2849.6,8.15054703]
[1766082757634,0.07357578,2850.3,2849.6,4.6413]
[1766082758958,0.07357578,2850.3,2849.7,4.6413]
[1766082759169,0.07357578,2850.3,2849.8,4.6413]
[1766082759368,0.07357578,2850.3,2849.9,4.6413]
[1766082759682,2.79417578,2850.7,2849.7,0.46438023]
[1766082759683,2.23117578,2850.4,2849.7,0.46438023]
[1766082759853,2.23117578,2850.4,2849.7,5.10568023]
[1766082760452,2.23117578,2850.4,2849.8,3.50901817]
[1766082760654,2.23117578,2850.4,2849.7,8.61476815]
[1766082760879,2.23117578,2850.4,2849.5,3.51133145]
[1766082760880,7.3301,2850.3,2849.5,3.51133145]
[1766082761039,8.07046758,2850.3,2849.6,0.46438023]
[1766082761244,3.46096758,2850.3,2849.7,8.15043816]
[1766082761444,0.563,2850.3,2849.7,4.6413]
[1766082761673,0.563,2850.3,2849.7,8.1504363]
[1766082761860,0.563,2850.3,2849.7,4.6413]
[1766082762646,4.6097,2849.7,2849.0,0.002]
[1766082762880,2.2134,2848.9,2847.8,0.002]
[1766082763070,2.2134,2848.1,2847.6,0.002]
[1766082763398,4.68127578,2848.2,2847.2,4.9413]
[1766082763399,2.2134,2847.9,2847.2,4.9413]
[1766082763683,0.563,2848.0,2847.3,4.9413]
[1766082763871,0.563,2848.0,2847.4,4.9413]
[1766082764192,2.2134,2847.8,2847.1,0.002]
[1766082764483,0.07357578,2847.3,2846.8,0.002]
[1766082764650,2.2134,2847.2,2846.8,0.002]
[1766082766477,2.67778023,2847.2,2846.8,0.002]
[1766082767278,2.67778023,2847.2,2846.7,0.002]
[1766082767584,2.28697578,2847.1,2846.7,0.002]
[1766082769581,2.2134,2847.1,2846.7,0.002]
[1766082769768,2.2134,2847.1,2846.8,0.002]
[1766082770083,0.63657578,2847.3,2846.8,0.002]
[1766082770491,0.07357578,2847.3,2846.8,0.002]
[1766082770700,0.63657578,2847.3,2846.8,0.002]
[1766082770999,0.564,2847.2,2846.8,0.002]
[1766082771202,0.564,2847.2,2846.5,0.002]
[1766082771203,2.2134,2846.9,2846.5,0.002]
[1766082771406,5.18047578,2847.2,2846.5,0.002]
[1766082771407,0.07357578,2847.0,2846.5,0.002]
[1766082771604,2.2134,2847.1,2846.5,0.002]
[1766082771891,2.2134,2847.1,2846.5,8.4563721]
[1766082772087,0.564,2847.2,2846.6,4.35879212]
[1766082772287,0.564,2847.2,2846.6,0.84583721]
[1766082773206,0.564,2847.2,2846.6,3.51290412]
[1766082773394,0.07357578,2847.1,2846.5,4.9433]
[1766082773558,2.28697578,2847.1,2846.5,0.002]
[1766082773916,2.2134,2846.5,2845.6,4.9433]
[1766082774202,2.2134,2846.3,2845.7,3.51597004]
[1766082774496,0.564,2846.4,2845.7,4.9433]
[1766082774864,0.564,2846.4,2845.9,3.51380992]
[1766082775168,0.564,2846.4,2845.8,3.51391496]
[1766082775879,0.564,2846.4,2845.7,0.002]
[1766082775880,2.28697578,2846.3,2845.7,0.002]
[1766082776081,2.95505516,2846.3,2845.7,0.002]
[1766082776265,2.2134,2846.0,2845.5,0.002]
[1766082776466,2.7774,2846.0,2845.5,0.002]
[1766082776662,0.564,2846.0,2845.3,0.002]
[1766082776867,2.2134,2845.8,2845.3,0.002]
[1766082777277,2.2134,2845.6,2844.5,4.9433]
[1766082777483,0.564,2845.8,2845.2,4.9413]
[1766082777690,2.85097578,2846.3,2845.2,4.9413]
[1766082777961,0.63757578,2846.3,2845.5,0.46438023]
[1766082778281,0.564,2846.3,2845.7,4.9413]
[1766082778481,2.28697578,2846.7,2845.9,4.9413]
[1766082778995,0.63757578,2846.9,2845.9,4.9413]
[1766082779493,0.63757578,2846.9,2846.1,4.9413]
[1766082779869,2.85097578,2846.9,2846.1,4.9413]
[1766082780275,2.2134,2846.8,2846.0,0.564]
[1766082780476,2.2134,2846.8,2846.1,4.9413]
[1766082780882,0.63757578,2846.9,2846.1,4.9413]
[1766082781404,0.564,2846.9,2846.1,4.9413]
[1766082781599,0.564,2846.9,2846.3,5.009]
[1766082781817,0.73347578,2847.3,2846.3,5.009]
[1766082782112,0.73347578,2847.3,2846.5,5.009]
[1766082782113,0.07357578,2847.3,2846.5,5.009]
[1766082783605,0.6599,2846.8,2846.0,1.27759781]
[1766082783811,0.73347578,2846.7,2846.0,0.46438023]
[1766082784103,0.73347578,2846.7,2845.8,1.02838023]
[1766082784413,0.73347578,2846.7,2846.3,3.51326476]
[1766082784861,0.001,2847.1,2846.5,3.51305536]
[1766082785067,0.001,2847.1,2846.6,5.009]
[1766082785305,4.3988,2846.9,2846.3,0.7026759]
[1766082785507,0.6599,2846.8,2846.2,0.46438023]
[1766082785669,0.6599,2846.8,2846.3,3.51332278]
[1766082786271,0.6599,2846.8,2846.1,0.46438023]
[1766082786472,0.73347578,2846.7,2846.1,0.46438023]
[1766082786693,0.73347578,2846.7,2846.2,3.51345651]
[1766082786897,0.73347578,2846.7,2846.3,0.74914137]
[1766082787383,0.73347578,2846.7,2846.3,0.23410667]
[1766082787589,0.73347578,2846.7,2846.0,0.002]
[1766082787792,0.73347578,2846.3,2845.4,5.009]
[1766082787969,0.73347578,2846.3,2845.7,3.51406965]
[1766082788167,5.0329,2846.2,2845.5,3.51425129]
[1766082788372,0.6599,2846.1,2845.5,3.51425129]
[1766082788585,0.6599,2846.1,2845.4,3.51439926]
[1766082788914,0.6599,2846.1,2845.5,3.51430488]
[1766082789304,4.3645,2846.1,2845.3,3.51649003]
[1766082789507,0.6559,2846.0,2845.4,0.39808703]
[1766082789708,0.6559,2846.0,2845.3,0.002]
[1766082790586,0.6559,2846.0,2845.3,5.011]
[1766082791103,0.564,2846.4,2845.5,5.009]
[1766082791316,0.564,2846.4,2845.6,0.564]
[1766082791517,0.564,2846.4,2845.3,0.002]
[1766082791518,0.6599,2846.0,2845.3,0.46638023]
[1766082791830,0.6599,2846.0,2845.4,3.51444436]
[1766082792184,0.6599,2846.0,2845.3,3.51653294]
[1766082792414,0.6599,2845.9,2845.5,0.002]
[1766082793829,0.6599,2845.9,2845.3,0.002]
[1766082794115,0.349,2845.6,2844.9,0.46638023]
[1766082794321,0.349,2845.6,2844.9,4.44697727]
[1766082794523,0.349,2845.6,2845.0,3.51493188]
[1766082794690,0.349,2845.6,2845.2,3.51467884]
[1766082794888,0.42257578,2845.9,2845.2,3.51467884]
[1766082795111,0.42257578,2845.9,2845.0,8.39931532]
[1766082795294,0.349,2845.6,2844.9,0.002]
[1766082795510,0.349,2845.5,2844.9,0.002]
[1766082795705,0.07357578,2845.7,2844.9,0.002]
[1766082795896,0.349,2846.0,2845.3,0.46438023]
[1766082796082,0.349,2845.9,2845.0,0.564]
[1766082796285,0.349,2845.8,2845.0,1.81207712]
[1766082796487,0.349,2845.8,2845.0,6.69647712]
[1766082796723,0.349,2845.8,2845.1,4.8844]
[1766082796919,0.349,2846.0,2845.1,4.8844]
[1766082797245,0.564,2846.2,2845.1,0.405504]
[1766082797522,0.63757578,2846.7,2845.3,5.75428423]
[1766082797733,0.001,2847.1,2846.0,8.74695126]
[1766082797902,0.001,2847.1,2846.3,4.8844]
[1766082798219,0.001,2847.1,2846.4,5.37284]
[1766082798442,4.2855,2847.0,2845.8,7.02790076]
[1766082798715,0.07357578,2846.9,2845.8,4.8844]
[1766082799090,0.913,2847.0,2845.7,11.57058287]
[1766082799290,0.913,2847.0,2846.0,4.8844]
[1766082799490,0.564,2847.0,2846.2,4.8844]
[1766082799716,0.564,2847.0,2846.1,0.564]
[1766082799717,0.564,2847.0,2846.5,3.51308624]
[1766082799911,0.001,2847.1,2846.5,11.91057248]
[1766082800113,0.001,2847.1,2846.6,4.8844]
[1766082800614,0.001,2847.1,2846.5,3.51308624]
[1766082800820,0.35,2847.1,2846.5,7.02617248]
[1766082801111,0.35,2847.1,2846.6,5.58701725]
[1766082801112,0.001,2847.1,2846.6,5.58701725]
[1766082801786,0.001,2847.1,2846.7,8.39723942]
[1766082802699,0.564,2847.4,2846.8,4.8844]
[1766082803632,0.349,2847.7,2846.8,4.8844]
[1766082803806,0.349,2847.7,2847.1,4.8844]
[1766082804010,0.07457578,2847.9,2847.3,4.8844]
[1766082804011,0.001,2847.9,2847.3,4.8844]
[1766082804210,0.35,2847.9,2847.2,1.19093385]
[1766082804509,0.35,2847.9,2847.0,11.90933852]
[1766082804510,4.5872,2847.9,2847.0,11.90933852]
[1766082804729,0.349,2847.8,2847.0,7.02493852]
[1766082804938,0.349,2847.8,2847.0,3.51246926]
[1766082805109,0.349,2847.8,2847.0,8.39686926]
[1766082805304,0.349,2847.8,2847.0,11.90933852]
[1766082805531,0.349,2847.8,2847.0,10.25464114]
[1766082807048,0.349,2847.8,2847.0,8.8827104]
[1766082807222,0.001,2847.9,2847.1,4.8844]
[1766082807626,0.001,2847.7,2847.1,4.8844]
[1766082807828,0.001,2847.7,2847.2,3.51222253]
[1766082808347,0.001,2847.7,2847.1,4.8844]
[1766082808516,0.349,2847.5,2846.7,5.34878023]
[1766082808716,0.349,2847.5,2846.9,3.51257688]
[1766082809014,0.349,2847.5,2846.7,9.46665064]
[1766082809213,0.349,2847.5,2846.9,4.8844]
[1766082809626,0.349,2847.5,2846.7,0.60513975]
[1766082809818,4.2037,2847.5,2846.7,0.60513975]
[1766082810022,4.2037,2847.1,2846.1,3.51352588]
[1766082810219,0.349,2846.8,2846.0,0.002]
[1766082810524,0.349,2846.4,2845.7,3.51399364]
[1766082811066,0.349,2846.4,2845.7,3.51403668]
[1766082811380,0.51167,2846.4,2845.6,3.51414045]
[1766082811524,0.349,2846.3,2845.5,4.8844]
[1766082811719,0.349,2846.3,2845.5,3.51429559]
[1766082812049,0.349,2846.3,2845.4,4.8844]
[1766082812236,0.349,2846.4,2845.4,4.8844]
[1766082813037,4.1846,2846.4,2845.4,0.46438023]
[1766082813236,0.349,2846.2,2845.4,0.46438023]
[1766082813564,0.349,2846.2,2845.4,5.34878023]
[1766082813752,0.349,2846.2,2845.4,0.46438023]
[1766082813953,0.349,2846.2,2845.3,0.46438023]
[1766082814132,0.349,2846.1,2845.3,0.46438023]
[1766082814455,0.349,2845.9,2845.3,3.97894212]
[1766082814796,0.349,2845.9,2845.4,3.51443599]
[1766082814964,0.349,2846.2,2845.4,3.51443599]
[1766082815143,0.349,2846.2,2845.4,11.91328035]
[1766082815459,0.349,2846.2,2845.4,8.39883599]
[1766082815859,0.349,2846.2,2845.4,11.91528035]
[1766082816636,0.349,2846.2,2845.4,8.40083599]
[1766082816837,0.349,2846.2,2845.4,13.15324641]
[1766082817145,0.349,2846.2,2845.4,9.63880205]
[1766082817351,0.349,2846.2,2845.4,13.15324641]
[1766082817547,0.349,2846.2,2845.4,8.40083599]
[1766082818160,0.349,2846.2,2845.4,4.8864]
[1766082818365,0.349,2846.2,2845.4,8.40081279]
[1766082818567,0.349,2846.2,2845.4,8.40080966]
[1766082818950,0.349,2846.2,2845.4,3.51640966]
[1766082819264,0.349,2846.2,2845.5,4.8844]
[1766082819452,0.349,2846.2,2845.4,0.002]
[1766082819657,0.349,2846.1,2845.4,0.002]
[1766082819965,0.349,2845.9,2845.4,0.002]
[1766082820573,0.349,2845.9,2845.1,0.002]
[1766082820871,0.349,2845.5,2845.1,0.002]
[1766082821740,0.349,2845.8,2845.1,0.002]
[1766082822000,0.07357578,2845.9,2845.2,3.51466834]
[1766082822327,0.913,2846.1,2845.4,4.8844]
[1766082822440,0.349,2846.0,2845.4,4.8844]
[1766082823272,0.3573,2845.7,2845.1,0.002]
[1766082823441,0.3573,2845.6,2845.1,0.002]
[1766082823960,4.61665,2845.6,2845.1,0.002]
[1766082824281,4.61665,2845.6,2844.5,0.002]
[1766082824282,0.3573,2845.0,2844.5,0.002]
[1766082824482,0.3573,2844.9,2844.5,0.002]
[1766082824651,0.3573,2844.8,2844.0,0.002]
[1766082824857,0.07357578,2844.6,2844.0,0.002]
[1766082825174,0.07357578,2844.6,2843.1,4.5171]
[1766082825175,0.3573,2844.0,2843.1,4.5171]
[1766082825486,0.3573,2843.8,2843.1,4.5171]
[1766082825639,0.3573,2843.8,2843.1,0.002]
[1766082825844,0.3573,2843.7,2843.1,0.002]
[1766082826083,0.3573,2843.7,2843.2,3.51908184]
[1766082826498,0.3573,2843.7,2843.2,0.002]
[1766082826865,0.3573,2843.5,2842.8,3.51763246]
[1766082827097,0.3573,2843.5,2842.8,7.0352911]
[1766082827387,0.3573,2843.5,2842.8,3.51763246]
[1766082827697,0.3573,2843.5,2842.8,7.0352911]
[1766082827870,0.564,2843.6,2842.9,4.5151]
[1766082828187,0.3573,2843.5,2842.8,3.51763246]
[1766082828363,0.3573,2843.4,2842.7,0.46438023]
[1766082828563,0.3573,2843.3,2842.7,3.51777376]
[1766082828804,0.564,2843.2,2842.4,4.5151]
[1766082829108,0.9213,2843.2,2842.4,4.5151]
[1766082829270,0.3573,2843.1,2842.7,3.5177745]
[1766082829829,0.564,2843.2,2842.7,3.5177745]
[1766082829962,0.9213,2843.2,2842.7,3.5177745]
[1766082830162,0.9213,2843.2,2842.7,7.03555688]
[1766082830369,0.3573,2843.1,2842.3,7.0365549]
[1766082830576,0.3573,2843.1,2842.4,4.5151]
[1766082830774,0.3573,2843.0,2842.3,3.51827745]
[1766082831090,0.564,2843.2,2842.4,4.5151]
[1766082831387,0.564,2843.5,2842.6,4.5151]
[1766082831591,0.564,2843.5,2842.6,5.0791]
[1766082831764,0.3573,2843.4,2842.6,4.5151]
[1766082831965,0.3573,2843.3,2842.4,1.02838023]
[1766082832166,0.3573,2843.3,2842.4,5.54348023]
[1766082832586,0.3573,2843.3,2842.6,4.97948023]
[1766082832965,0.564,2843.5,2842.6,4.97948023]
[1766082833370,0.3573,2843.4,2842.6,4.97948023]
[1766082833577,0.3573,2843.4,2842.6,1.72233423]
[1766082833781,0.3573,2843.4,2842.7,4.5151]
[1766082834002,0.3573,2843.4,2842.6,0.46438023]
[1766082834190,0.564,2843.5,2842.3,3.51822187]
[1766082834191,0.3573,2843.2,2842.3,3.51822187]
[1766082834377,0.3573,2843.0,2842.2,3.51828234]
[1766082834577,0.3573,2842.9,2842.2,7.03668357]
[1766082834779,0.49687,2843.0,2842.3,4.5151]
[1766082834975,0.3573,2843.0,2842.3,4.5151]
[1766082835197,0.564,2843.1,2842.3,4.5151]
[1766082835591,0.9213,2843.1,2842.3,4.5151]
[1766082835800,0.3573,2843.0,2842.3,4.5151]
[1766082836500,0.3573,2843.0,2842.4,7.03630734]
[1766082836699,0.3573,2843.0,2842.4,16.22470174]
[1766082837014,0.3573,2843.0,2842.4,8.75544807]
[1766082837352,0.3573,2843.0,2842.4,5.2372944]
[1766082837475,0.3573,2842.8,2842.3,0.564]
[1766082837676,0.8807,2842.8,2842.1,3.51842135]
[1766082837928,0.3573,2842.5,2842.1,3.51851337]
[1766082838219,0.3573,2842.5,2841.9,4.08277222]
[1766082838220,0.3573,2842.2,2841.6,7.03828828]
[1766082838387,0.3573,2842.2,2841.5,0.564]
[1766082838388,0.3573,2842.2,2841.5,3.51920712]
[1766082838591,0.3573,2842.2,2841.4,7.04078036]
[1766082839322,0.3573,2841.7,2840.3,4.5171]
[1766082839530,0.3573,2841.6,2840.5,4.5151]
[1766082839818,0.564,2841.8,2841.2,3.51962959]
[1766082839979,0.564,2841.8,2841.1,4.5151]
[1766082840396,0.564,2841.8,2841.3,3.51951017]
[1766082840716,0.9213,2842.3,2841.3,4.5151]
[1766082840881,0.3573,2842.3,2841.4,0.3637]
[1766082841107,0.3573,2842.3,2841.5,4.3794]
[1766082841310,0.3573,2842.3,2841.6,0.47431]
[1766082841931,0.564,2842.5,2841.6,0.47431]
[1766082841932,0.564,2842.5,2841.7,4.9434]
[1766082842374,30.0,2842.3,2840.6,0.97964781]
[1766082842506,30.0,2842.3,2840.3,0.002]
[1766082842507,0.3506,2842.2,2841.1,11.41884817]
[1766082842830,0.3506,2842.2,2841.1,8.4630847]
[1766082843027,0.3506,2842.2,2841.1,11.98284817]
[1766082843231,0.564,2842.5,2841.3,0.3637]
[1766082843430,0.3506,2842.4,2841.4,4.7431]
[1766082843631,0.3506,2842.4,2841.6,4.3794]
[1766082843937,0.3506,2842.4,2841.5,1.03831]
[1766082844138,0.564,2842.5,2841.6,0.3637]
[1766082844315,0.564,2842.5,2841.7,4.3794]
[1766082844720,30.3506,2842.4,2841.2,0.46438023]
[1766082844926,0.3169,2841.9,2841.5,0.002]
[1766082845128,0.405504,2841.3,2839.8,4.3794]
[1766082845354,0.3129,2841.0,2840.0,4.3794]
[1766082845553,0.3129,2841.0,2840.1,0.82643507]
[1766082845940,0.405504,2840.9,2839.8,3.52135131]
[1766082846140,0.405504,2841.1,2839.8,3.52135131]
[1766082846339,0.405504,2840.8,2839.7,3.52149087]
[1766082846738,0.405504,2840.8,2839.2,5.32406628]
[1766082846739,4.39039118,2840.5,2839.2,1.802]
[1766082846916,0.405504,2840.3,2839.2,1.802]
[1766082847258,0.405504,2840.3,2839.2,10.30737957]
[1766082847941,13.52042542,2840.6,2839.6,4.7431]
[1766082847942,0.405504,2840.6,2839.6,4.7431]
[1766082848143,0.86988423,2840.6,2839.6,4.7431]
[1766082848322,0.63857578,2840.7,2839.6,4.7431]
[1766082848323,0.565,2840.7,2839.6,4.7431]
[1766082848523,0.565,2840.7,2839.3,5.3081]
[1766082848842,30.0,2840.6,2839.4,4.96126601]
[1766082849158,0.63857578,2840.7,2839.4,3.52181616]
[1766082849318,0.46438023,2840.6,2839.4,3.52181616]
[1766082849518,0.07357578,2840.9,2839.5,4.7431]
[1766082849760,0.405504,2840.8,2839.5,4.7431]
[1766082850350,10.0,2841.7,2839.7,4.3794]
[1766082850544,1.57235758,2841.5,2840.1,0.3637]
[1766082850856,0.07357578,2842.3,2840.9,4.3794]
[1766082851165,0.565,2842.2,2841.0,5.3081]
[1766082851326,0.07357578,2842.1,2840.9,0.46438023]
[1766082851650,0.565,2842.2,2841.0,4.7431]
[1766082851823,0.565,2842.2,2841.1,4.7431]
[1766082852165,0.565,2842.2,2841.2,4.7431]
[1766082852324,0.565,2842.2,2841.3,5.3091]
[1766082852651,0.07357578,2842.4,2841.3,5.2939]
[1766082852852,0.07357578,2842.4,2841.4,3.51939184]
[1766082853054,0.07357578,2842.4,2841.1,0.57734802]
[1766082853356,0.07357578,2842.4,2841.3,3.51951111]
[1766082853554,0.07357578,2842.4,2841.2,0.565]
[1766082853555,17.97,2842.3,2841.2,1.02938023]
[1766082853849,3.59174207,2842.4,2841.2,1.02938023]
[1766082853850,0.07357578,2842.4,2841.3,8.33041571]
[1766082854156,25.325,2842.3,2841.1,4.08574909]
[1766082854356,10.405504,2842.2,2841.0,1.03038023]
[1766082854555,0.405504,2842.0,2841.0,0.566]
[1766082854854,1.6065504,2842.1,2841.1,4.8109]
[1766082855044,0.566,2842.1,2841.2,3.51962976]
[1766082855359,0.566,2842.1,2841.2,4.8109]
[1766082856424,0.566,2842.1,2841.1,3.51970742]
[1766082856827,0.566,2842.1,2841.2,4.8109]
[1766082857054,0.566,2842.1,2841.2,3.51958407]
[1766082857260,0.566,2842.1,2841.2,4.76121834]
[1766082857557,0.07357578,2842.2,2840.6,5.27528023]
[1766082857725,0.405504,2842.1,2841.0,0.46438023]
[1766082857926,0.07357578,2842.0,2840.7,3.52017598]
[1766082858126,0.405504,2841.9,2840.7,0.565]
[1766082858355,1.55046238,2841.9,2840.9,3.51997862]
[1766082858624,0.405504,2841.9,2840.9,3.52000489]
[1766082858859,0.405504,2841.9,2840.8,5.34849]
[1766082859047,0.405504,2841.9,2840.9,3.51999328]
[1766082859359,0.07357578,2841.7,2840.7,4.08524571]
[1766082859545,0.07357578,2841.7,2840.8,3.5201155]
[1766082859857,13.51860472,2842.1,2840.9,4.4624]
[1766082859858,0.46538023,2842.1,2840.9,4.4624]
[1766082860058,0.001,2842.1,2841.2,4.8109]
[1766082860227,0.001,2842.1,2840.8,9.09155162]
[1766082860432,0.46538023,2842.1,2840.9,0.565]
[1766082860626,0.46538023,2842.1,2840.9,5.3759]
[1766082860627,0.001,2842.1,2840.9,5.3759]
[1766082860832,0.55209861,2842.1,2841.0,6.12856868]
[1766082861032,0.55209861,2842.1,2841.1,3.51976347]
[1766082861532,1.01647884,2842.1,2841.1,3.51976347]
[1766082861862,0.55209861,2842.1,2841.1,3.51976347]
[1766082862359,0.001,2842.1,2841.1,3.51976347]
[1766082862558,0.46538023,2842.1,2841.1,3.51976347]
[1766082862757,0.001,2842.1,2841.1,3.51976347]
[1766082862956,0.07457578,2842.1,2841.1,3.51976347]
[1766082863260,0.001,2842.1,2841.2,4.8109]
[1766082863457,0.001,2842.1,2841.3,1.75004269]
[1766082863626,0.001,2842.1,2841.5,0.3485]
[1766082863828,0.001,2842.1,2841.3,6.46032292]
[1766082864024,0.001,2842.1,2841.6,0.565]
[1766082864469,0.001,2842.1,2841.2,0.565]
[1766082864777,0.46322578,2842.1,2841.1,0.565]
[1766082865151,0.46322578,2842.1,2841.0,12.41561386]
[1766082865463,0.07357578,2842.7,2841.5,4.4624]
[1766082865636,0.565,2842.8,2841.9,4.4624]
[1766082865844,0.565,2842.8,2842.0,4.8109]
[1766082866232,0.565,2842.8,2841.6,4.8109]
[1766082866430,0.07357578,2842.7,2841.7,0.565]
[1766082866756,0.54298962,2842.7,2841.7,0.565]
[1766082866960,0.07357578,2842.4,2841.4,4.8109]
[1766082867265,0.07357578,2842.4,2840.8,9.56180498]
[1766082867266,3.59173145,2842.4,2841.3,0.565]
[1766082867503,0.07357578,2842.4,2841.3,3.51946746]
[1766082867669,0.07357578,2842.4,2841.3,3.86801571]
[1766082867962,0.001,2842.1,2841.3,3.90628192]
[1766082869059,0.001,2842.1,2841.2,0.565]
[1766082869431,0.001,2842.1,2841.3,0.565]
[1766082870441,0.07357578,2842.0,2841.1,3.51976347]
[1766082871063,0.07357578,2842.0,2841.1,7.03952694]
[1766082871271,0.07357578,2842.0,2841.1,8.28106963]
[1766082871473,0.07357578,2841.8,2841.1,7.03952694]
[1766082871976,0.07357578,2841.8,2841.1,11.85042694]
[1766082872881,0.07357578,2841.8,2841.1,8.33066347]
[1766082873066,0.07357578,2841.8,2841.1,4.8109]
[1766082873269,0.07357578,2841.8,2841.1,1.02938023]
[1766082873468,0.07357578,2841.8,2841.0,4.08476434]
[1766082873674,0.07357578,2841.8,2841.1,3.51975467]
[1766082873856,0.001,2842.1,2841.4,4.8109]
[1766082874056,0.001,2842.1,2841.5,4.8109]
[1766082874451,0.001,2842.1,2841.6,4.8109]
[1766082875057,0.001,2842.1,2841.6,8.32994748]
[1766082875658,0.001,2842.1,2841.6,11.84909162]
[1766082875870,0.001,2842.1,2841.6,13.09050078]
[1766082876154,0.001,2842.1,2841.6,9.57135664]
[1766082876551,0.001,2842.1,2841.6,13.09050078]
[1766082877169,0.07357578,2842.5,2841.9,4.8109]